{"text_format":"1","workbook":"xlsx","n_sheets":7,"sheets":["ЖУРНАЛ1","ФОРМА","ЖУРНАЛ2","СЧЕТ  НА ОПЛАТУ","СФ","АКТ","ссылки для выпаюащих списков"],"not_rendered":{"charts":0,"images":1,"macros":1,"external_links":0,"defined_names":2,"comments":0,"pivot_tables":0},"unopened":[],"bounds":{"document_bytes":16777216,"sheet_cells":100000,"rows_first":2000,"rows_last":500,"rows_between":2000,"halvings":0,"cell_chars":16384,"cell_head_chars":4096},"cells_cut":0,"cells_raw":0,"read":"whole","date_system":"1900"}

{"sheet":"ЖУРНАЛ1","index":0,"n_rows":4,"n_cols":29,"rows_kept":4,"cut":false,"hidden":false,"merged":[]}
[null,null,null,null,"ЖУРНАЛ ПО КЛИЕНТАМ (ЮРИДИЧЕСКИЕ ЛИЦА)"]
[null,"№ договора","Дата регитсрации","Наименование организации","Юр. адрес организации","Руководитель","Школа","Дисциплина","Контактный телефон","Контактное лицо","Эл.почта","ИИН/БИН","ИИК/IBAN","Банк клиента","БИК банка клиента","БИН банка клиента","К-во учен.","Стоимость курса","Ученик 3","Ученик-1","Ученик-2","Ученик-3","Ученик-4","Ученик-5","Ученик-6","Ученик-7","Ученик-8","Договор","Дата рег."]
[null,1,"2013-12-05","ТОО \"Аргымак Транс Сервис\"","Республика Казахстан, Мангистауская область, г. Актау 130000, 15 мкр., 5а зд. ","генеральный директор г-н Дзяо Юнь","Верба","Курс английского языка в группе, уровень 3",7292333666,"Хайруллина А.","-",848484848484,"КЗ0101010110101","АО \"Казах Банк\"","КЗ010101","КЗАКАЗ",8,15000,null,"А","Б","В","Г","Д","Е","Ж","З",{"$f":"Table5[№ договора]","v":1},{"$f":"Table5[Дата регитсрации]","v":"2013-12-05"}]
[null,2,"2013-12-04","АО \"КазМунайГаз\"","Республика Казахстан, Мангистауская область, г. Астана, ул. Тауелсиздик 25","Президент Аккенжеев Б.Т.","VERBA","Полный курс для переводчиков",7172555555,"Джалгаспаев Н.С.","-",555555555555,"КЗ5555555555555","АО \"БТА Банк\"","КАЗПРЕНР",555555555555,8,1000000,3,"н","н","н","н","н","н","н","н",{"$f":"Table5[№ договора]","v":2},{"$f":"Table5[Дата регитсрации]","v":"2013-12-04"}]

{"sheet":"ФОРМА","index":1,"n_rows":34,"n_cols":19,"rows_kept":34,"cut":false,"hidden":false,"merged":[[29,18,29,19],[25,2,25,6],[25,8,25,10],[25,12,25,13],[25,15,25,19],[26,2,26,6],[26,8,26,13],[26,15,26,19],[27,3,27,4],[27,12,27,13],[27,7,27,9],[27,18,27,19],[29,3,29,4],[29,7,29,9],[29,12,29,13],[4,4,5,14],[11,2,11,6],[12,2,12,6],[13,2,13,6],[24,2,24,6],[14,2,14,6],[15,2,15,6],[16,2,16,6],[17,2,17,6],[18,2,18,6],[19,2,19,6],[22,8,22,13],[23,8,23,13],[20,2,20,6],[21,2,21,6],[22,2,22,6],[23,2,23,6],[17,8,17,13],[18,8,18,13],[19,8,19,13],[20,8,20,13],[21,8,21,13],[10,8,10,10],[10,12,10,13],[20,15,20,19],[21,15,21,19],[22,15,22,19],[15,8,15,13],[16,8,16,13],[18,15,18,19],[19,15,19,19],[11,8,11,13],[12,8,12,13],[13,8,13,13],[14,8,14,13],[13,15,13,19],[14,15,14,19],[15,15,15,19],[23,15,23,19],[24,15,24,19],[24,8,24,13],[11,15,11,19],[12,15,12,19],[16,15,16,19],[17,15,17,19]]}
[]
[]
[]
[]
[]
[]
[]
[]
[]
[]
[null,null,null,null,null,null,null,null,{"$f":"TODAY()","v":"2013-12-09"},null,null,null,{"$f":"NOW()","v":41617.542820717594},null,null,null,null,"№",{"$f":"IF(C12<>0, (LOOKUP(A1+307, ЖУРНАЛ2!B:B)+1), \"НЕТ ДАННЫХ\")","v":2}]
[null,null,"ТОО \"Аргымак Транс Сервис\"",null,null,null,null,null,{"$f":"IF(ISNA(VLOOKUP(C12,ЖУРНАЛ1!D:AB,9,0)), \"-\", VLOOKUP(C12,ЖУРНАЛ1!D:AB,9,0))","v":848484848484},null,null,null,null,null,null,{"$f":"IF(ISNA(VLOOKUP(C12,ЖУРНАЛ1!D:AB,17,0)), \"-\", VLOOKUP(C12,ЖУРНАЛ1!D:AB,17,0))","v":"А"}]
[null,null,"наименование организации (1)",null,null,null,null,null,"ИИН / БИН (9)",null,null,null,null,null,null,"Ф.И.О. обучаемого (17)"]
[null,null,{"$f":"IF(ISNA(VLOOKUP(C12,ЖУРНАЛ1!D:AC,2,0)), \"-\", VLOOKUP(C12,ЖУРНАЛ1!D:AC,2,0))","v":"Республика Казахстан, Мангистауская область, г. Актау 130000, 15 мкр., 5а зд. "},null,null,null,null,null,{"$f":"IF(ISNA(VLOOKUP(C12,ЖУРНАЛ1!D:AB,10,0)), \"-\", VLOOKUP(C12,ЖУРНАЛ1!D:AB,10,0))","v":"КЗ0101010110101"},null,null,null,null,null,null,{"$f":"IF(ISNA(VLOOKUP(C12,ЖУРНАЛ1!D:AB,18,0)), \"-\", VLOOKUP(C12,ЖУРНАЛ1!D:AB,18,0))","v":"Б"}]
[null,null,"юридический адрес (2)",null,null,null,null,null,"ИИК / IBAN (10)",null,null,null,null,null,null,"Ф.И.О. обучаемого (18)"]
[null,null,{"$f":"IF(ISNA(VLOOKUP(C12,ЖУРНАЛ1!D:AB,3,0)), \"-\", VLOOKUP(C12,ЖУРНАЛ1!D:AB,3,0))","v":"генеральный директор г-н Дзяо Юнь"},null,null,null,null,null,{"$f":"IF(ISNA(VLOOKUP(C12,ЖУРНАЛ1!D:AB,11,0)), \"-\", VLOOKUP(C12,ЖУРНАЛ1!D:AB,11,0))","v":"АО \"Казах Банк\""},null,null,null,null,null,null,{"$f":"IF(ISNA(VLOOKUP(C12,ЖУРНАЛ1!D:AB,19,0)), \"-\", VLOOKUP(C12,ЖУРНАЛ1!D:AB,19,0))","v":"В"}]
[null,null,"руководитель (3)",null,null,null,null,null,"Банк клиента (11)",null,null,null,null,null,null,"Ф.И.О. обучаемого (19)"]
[null,null,{"$f":"IF(ISNA(VLOOKUP(C12,ЖУРНАЛ1!D:AB,4,0)), \"-\", VLOOKUP(C12,ЖУРНАЛ1!D:AB,4,0))","v":"Верба"},null,null,null,null,null,{"$f":"IF(ISNA(VLOOKUP(C12,ЖУРНАЛ1!D:AB,12,0)), \"-\", VLOOKUP(C12,ЖУРНАЛ1!D:AB,12,0))","v":"КЗ010101"},null,null,null,null,null,null,{"$f":"IF(ISNA(VLOOKUP(C12,ЖУРНАЛ1!D:AB,20,0)), \"-\", VLOOKUP(C12,ЖУРНАЛ1!D:AB,20,0))","v":"Г"}]
[null,null,"школа (4)",null,null,null,null,null,"БИК банка клиента (12)",null,null,null,null,null,null,"Ф.И.О. обучаемого (20)"]
[null,null,{"$f":"IF(ISNA(VLOOKUP(C12,ЖУРНАЛ1!D:AB,5,0)), \"-\", VLOOKUP(C12,ЖУРНАЛ1!D:AB,5,0))","v":"Курс английского языка в группе, уровень 3"},null,null,null,null,null,{"$f":"IF(ISNA(VLOOKUP(C12,ЖУРНАЛ1!D:AB,13,0)), \"-\", VLOOKUP(C12,ЖУРНАЛ1!D:AB,13,0))","v":"КЗАКАЗ"},null,null,null,null,null,null,{"$f":"IF(ISNA(VLOOKUP(C12,ЖУРНАЛ1!D:AB,21,0)), \"-\", VLOOKUP(C12,ЖУРНАЛ1!D:AB,21,0))","v":"Д"}]
[null,null,"дисциплина (5)",null,null,null,null,null,"БИН Банка клиента (13)",null,null,null,null,null,null,"Ф.И.О. обучаемого (21)"]
[null,null,{"$f":"IF(ISNA(VLOOKUP(C12,ЖУРНАЛ1!D:AB,6,0)), \"-\", VLOOKUP(C12,ЖУРНАЛ1!D:AB,6,0))","v":7292333666},null,null,null,null,null,{"$f":"IF(ISNA(VLOOKUP(C12,ЖУРНАЛ1!D:AB,14,0)), \"-\", VLOOKUP(C12,ЖУРНАЛ1!D:AB,14,0))","v":8},null,null,null,null,null,null,{"$f":"IF(ISNA(VLOOKUP(C12,ЖУРНАЛ1!D:AB,22,0)), \"-\", VLOOKUP(C12,ЖУРНАЛ1!D:AB,22,0))","v":"Е"}]
[null,null,"контактные телефоны (6)",null,null,null,null,null,"к-во обучаемых (14)",null,null,null,null,null,null,"Ф.И.О. обучаемого (22)"]
[null,null,{"$f":"IF(ISNA(VLOOKUP(C12,ЖУРНАЛ1!D:AB,7,0)), \"-\", VLOOKUP(C12,ЖУРНАЛ1!D:AB,7,0))","v":"Хайруллина А."},null,null,null,null,null,{"$f":"IF(ISNA(VLOOKUP(C12,ЖУРНАЛ1!D:AB,15,0)), \"-\", VLOOKUP(C12,ЖУРНАЛ1!D:AB,15,0))","v":15000},null,null,null,null,null,null,{"$f":"IF(ISNA(VLOOKUP(C12,ЖУРНАЛ1!D:AB,23,0)), \"-\", VLOOKUP(C12,ЖУРНАЛ1!D:AB,23,0))","v":"Ж"}]
[null,null,"контактное лицо (7)",null,null,null,null,null,"стоимость курса по договору на одного обучаемого (15)",null,null,null,null,null,null,"Ф.И.О. обучаемого (23)"]
[null,null,{"$f":"IF(ISNA(VLOOKUP(C12,ЖУРНАЛ1!D:AB,8,0)), \"-\", VLOOKUP(C12,ЖУРНАЛ1!D:AB,8,0))","v":"-"},null,null,null,null,null,{"$f":"IF(ISNA(VLOOKUP(C12,ЖУРНАЛ1!D:AC,25,0)), \"\", VLOOKUP(C12,ЖУРНАЛ1!D:AC,25,0))","v":1},null,null,null,{"$f":"IF(ISNA(VLOOKUP(C12,ЖУРНАЛ1!D:AC,26,0)), \"-\", VLOOKUP(C12,ЖУРНАЛ1!D:AC,26,0))","v":"2013-12-05"},null,null,{"$f":"IF(ISNA(VLOOKUP(C12,ЖУРНАЛ1!D:AB,24,0)), \"-\", VLOOKUP(C12,ЖУРНАЛ1!D:AB,24,0))","v":"З"}]
[null,null,"адрес электронной почты (8)",null,null,null,null,null,"номер договора с клиентом на предоставление услуг (16)",null,null,null,null,null,null,"Ф.И.О. обучаемого (24)"]
[null,null,"ед.изм.","курс",null,null,"кол-во",1,null,null,null,"стоимость ",2,null,null,null,null,"способ оплаты","Наличный расчет"]
[]
[null,null,"Проведение урока с выездом","месяц",null,null,"кол-во",1,null,null,null,"стоимость ",2,null,null,null,null,"сумма на оплату",{"$f":"(M28*H28)+(H30*M30)","v":4}]
[]
[]
[]
[null,null,false,false,false]

{"sheet":"ЖУРНАЛ2","index":2,"n_rows":3,"n_cols":16,"rows_kept":3,"cut":false,"hidden":false,"merged":[]}
[null,null,null,"ЖУРНАЛ ПО ОПЛАТЕ (ЮРИДИЧЕСКИЕ ЛИЦА)",null,null,null,null,null,null,null,null,null,null,true,true]
[null,"№ Сч.на опл., с/ф, акта","Дата счета на оплату","Дата счет-фактуры и акта","Юр. адрес организации","Школа","Дисциплина","ИИН/БИН","ИИК/IBAN","Банк клиента","БИК банка клиента","БИН банка клиента","Договор","Дата рег. Дог. ","Дата счета на оплату2","Дата счет-фактуры и акта2"]
[null,1]

{"sheet":"СЧЕТ  НА ОПЛАТУ","index":3,"n_rows":53,"n_cols":32,"rows_kept":53,"cut":false,"hidden":false,"merged":[[23,4,23,36],[0,5,2,36],[21,4,21,37],[13,0,13,19],[13,20,13,27],[13,28,13,36],[14,0,14,19],[14,20,14,27],[14,28,14,36],[10,0,10,19],[10,20,10,29],[10,30,10,36],[11,0,11,19],[11,20,12,29],[11,30,12,36],[12,0,12,19],[19,0,19,37],[21,0,21,3],[28,0,28,1],[28,2,28,5],[28,7,28,17],[28,18,28,21],[28,22,28,24],[23,0,23,3],[25,0,25,3],[25,4,25,37],[27,0,27,1],[27,2,27,6],[27,7,27,17],[27,18,27,21],[27,22,27,24],[27,25,27,30],[29,25,29,30],[29,31,29,36],[40,21,40,32],[17,8,17,9],[31,31,31,36],[32,31,32,36],[33,7,33,8],[33,12,33,36],[34,7,34,36],[38,21,38,32],[27,31,27,36],[28,25,28,30],[28,31,28,36],[17,10,17,12],[17,13,17,14],[17,15,17,26],[29,0,29,1],[29,2,29,5],[29,7,29,17],[29,18,29,21],[29,22,29,24]]}
[null,null,null,null,null,"Внимание! Оплата данного счета означает согласие с условиями предоставления услуг. Уведомление об оплате обязательно, в противном случае не гарантируется предоставление услуг. Услуги предоставляются по факту прихода денег на р/с Поставщика услуг или оплаты наличными."]
[]
[]
[]
[]
[]
[]
["г. Актау, 13-4, тел. +7 701 6535709, verbaaktau@gmail.com"]
[]
["Образец платежного поручения"]
["Бенефициар: ",null,null,null,null,null,null,null,null,null,null,null,null,null,null,null,null,null,null,null,"ИИК / IBAN",null,null,null,null,null,null,null,null,null,"Кбе"]
["Индивидуальный предприниматель Аккенжеев Б.Т.",null,null,null,null,null,null,null,null,null,null,null,null,null,null,null,null,null,null,null,"KZ3892614017G0655000",null,null,null,null,null,null,null,null,null,17]
["РНН: 430710201385"]
["Банк бенефициара:",null,null,null,null,null,null,null,null,null,null,null,null,null,null,null,null,null,null,null,"БИК",null,null,null,null,null,null,null,"Код назначения платежа"]
["АО \"Казкоммерцбанк\"",null,null,null,null,null,null,null,null,null,null,null,null,null,null,null,null,null,null,null,"KZKOKZKX",null,null,null,null,null,null,null,859]
[]
[]
["Счет на оплату ",null,null,null,null,null,null,null,"№",null,{"$f":"ФОРМА!S11","v":2},null,null,"от",null,{"$f":"ФОРМА!I11","v":"2013-12-09"}]
[]
[]
[]
["Поставщик:",null,null,null,"РНН 430710201385, БИН / ИИН 840316300518, Индивидуальный предприниматель Аккенжеев Б.Т., Республика Казахстан, Мангистауская область, г. Актау, 13 мкр., 4 зд., язковая школа \"Verba\""]
[]
["Покупатель:",null,null,null,{"$f":"CONCATENATE(\"БИН / ИИН: \",H47,\"; \",H52,\"; \",\"юридический адрес: \",H53)","v":"БИН / ИИН: 848484848484; ТОО \"Аргымак Транс Сервис\"; юридический адрес: Республика Казахстан, Мангистауская область, г. Актау 130000, 15 мкр., 5а зд. "}]
[]
["Договор:",null,null,null,"Без договора"]
[]
["№",null,"Код",null,null,null,null,"Наименование",null,null,null,null,null,null,null,null,null,null,"Кол-во",null,null,null,"Ед.",null,null,"Цена",null,null,null,null,null,"Сумма"]
[1,null,"н/п",null,null,null,null,{"$f":"ФОРМА!C20","v":"Курс английского языка в группе, уровень 3"},null,null,null,null,null,null,null,null,null,null,{"$f":"ФОРМА!H28","v":1},null,null,null,{"$f":"ФОРМА!D28","v":"курс"},null,null,{"$f":"ФОРМА!M28","v":2},null,null,null,null,null,{"$f":"Z29*S29","v":2}]
[2,null,"н/п",null,null,null,null,"Доплата за проведение уроков на месте заказчика",null,null,null,null,null,null,null,null,null,null,{"$f":"ФОРМА!H30","v":1},null,null,null,{"$f":"ФОРМА!D30","v":"месяц"},null,null,{"$f":"ФОРМА!M30","v":2},null,null,null,null,null,{"$f":"Z30*S30","v":2}]
[]
[null,null,null,null,null,null,null,null,null,null,null,null,null,null,null,null,null,null,null,null,null,null,null,null,null,null,null,null,null,null,"Итого:",{"$f":"SUM(AF29:AK30)","v":4}]
[null,null,null,null,null,null,null,null,null,null,null,null,null,null,null,null,null,null,null,null,null,null,null,null,null,null,null,null,null,null,"Без налога (НДС)","-"]
["Всего наименований ",null,null,null,null,null,null,2,null,"на сумму",null,null,{"$f":"AF32","v":4}]
["Всего к оплате: ",null,null,null,null,null,null,{"$f":"IF((AF32)<=0, \"_______________________________________\", FirstLetter(CurText(AF32)))","v":"четыре тенге 00 тиын"}]
[]
[]
[]
["Директор",null,null,null,null,null,null,null,null,null,null,null,null,null,null,null,null,null,null,null,null,"Аккенжеев Б.Т."]
[]
["Главный бухгалтер",null,null,null,null,null,null,null,null,null,null,null,null,null,null,null,null,null,null,null,null,"не предусмотрен"]
[]
[]
[]
[]
[]
[null,null,null,null,null,null,null,{"$f":"ФОРМА!I12","v":848484848484}]
[null,null,null,null,null,null,null,{"$f":"ФОРМА!I14","v":"КЗ0101010110101"}]
[null,null,null,null,null,null,null,{"$f":"ФОРМА!I16","v":"АО \"Казах Банк\""}]
[null,null,null,null,null,null,null,{"$f":"ФОРМА!I18","v":"КЗ010101"}]
[null,null,null,null,null,null,null,{"$f":"ФОРМА!I20","v":"КЗАКАЗ"}]
[null,null,null,null,null,null,null,{"$f":"ФОРМА!C12","v":"ТОО \"Аргымак Транс Сервис\""}]
[null,null,null,null,null,null,null,{"$f":"ФОРМА!C14","v":"Республика Казахстан, Мангистауская область, г. Актау 130000, 15 мкр., 5а зд. "}]

{"sheet":"СФ","index":4,"n_rows":38,"n_cols":11,"rows_kept":38,"cut":false,"hidden":false,"merged":[[0,0,0,4],[1,4,1,5],[2,0,2,1],[2,2,2,10],[3,0,3,1],[3,2,3,10],[0,5,0,6],[11,0,11,9],[4,0,4,1],[4,2,4,10],[5,0,5,9],[6,0,6,1],[6,2,6,10],[7,0,7,1],[7,4,7,5],[7,7,7,8],[8,0,8,1],[8,5,8,6],[9,0,9,4],[9,5,9,9],[12,0,12,9],[13,0,13,1],[13,4,13,5],[13,8,13,9],[14,0,14,1],[14,2,14,4],[16,0,16,1],[16,2,16,4],[16,5,16,9],[17,2,17,9],[19,0,19,1],[19,2,19,10],[20,0,20,1],[20,2,20,4],[20,5,20,10],[21,2,21,10],[22,0,22,1],[22,2,22,10],[32,7,32,10],[24,0,25,0],[24,1,25,1],[24,2,25,2],[24,3,25,3],[24,4,25,4],[24,5,25,5],[24,6,24,7],[24,8,25,8],[24,9,24,10],[29,0,29,4],[31,0,31,4],[36,0,36,2],[36,7,36,10],[37,0,37,10],[33,0,33,2],[33,4,33,5],[33,7,33,10],[34,0,34,4],[34,7,34,10],[35,7,35,10]]}
["Счет-фактура ",null,null,null,null,{"$f":"ФОРМА!S11","v":2}]
[" ",null,null,"от",{"$f":"ФОРМА!I11","v":"2013-12-09"},null,null,null,null,null," "]
["Поставщик:",null,"ИП Аккенжеев Б.Т. (свидетельство о госрегистрации ИП Серия 12915 №0731944)"]
["РНН и его адрес: ",null,"РРН 430710201385, ИИН 840316300518, Республика Казахстан, Мангистауская область, г. Актау 130000, мкр. 13, зд. 4."]
["Свид. о постан. на учет по НДС:",null,"не является плательщиком НДС"]
[]
["Расчетный счет поставщика услуг: ",null,"KZ38 9261 4017 G065 5000, АО \"Казкоммерцбанк\", БИК KZKOKZKX"]
["Договор на поставку услуг: ",null,{"$f":"ФОРМА!I26","v":1},"от",{"$f":"ФОРМА!M26","v":"2013-12-05"}]
["Условия оплаты по договору: ",null,{"$f":"ФОРМА!S28","v":"Наличный расчет"}]
["Пункт назначения поставляемых услуг:  ",null,null,null,null,"адрес клиента"]
["государство, регион, область, город, район"]
["Поставка товаров (работ,услуг) осуществлена по доверенности: "]
["Способ отправления: "]
["Акт приема-сдачи оказанных услуг:   ",null,{"$f":"F1","v":2},"от ",{"$f":"E2","v":"2013-12-09"}]
["Грузоотправитель: ",null,"бин"]
["(РНН, наименование и адрес)"]
["Грузополучатель: ",null,{"$f":"C15","v":"бин"},null,null,"клиент"]
[null,null,{"$f":"F10","v":"адрес клиента"}]
["(РНН, наименование и адрес)"]
["Покупатель:  ",null,{"$f":"ФОРМА!C12","v":"ТОО \"Аргымак Транс Сервис\""}]
["БИН и адрес покупателя:  ",null,{"$f":"ФОРМА!I12","v":848484848484}]
[null,null,{"$f":"ФОРМА!C14:G14","v":"Республика Казахстан, Мангистауская область, г. Актау 130000, 15 мкр., 5а зд. "}]
["Расчетный счет покупателя:   ",null,{"$f":"CONCATENATE(\"ИИК/IBAN: \",ФОРМА!I14,\" в банке \",ФОРМА!I16,\"; БИК банка \",ФОРМА!I18)","v":"ИИК/IBAN: КЗ0101010110101 в банке АО \"Казах Банк\"; БИК банка КЗ010101"}]
[]
["№ п/п","Наименование товаров (работ, услуг)","Ед. изм.","Кол-во (объем)","Цена тенге","Стоимость товаров (работ, услуг) без НДС","НДС",null,"Всего стоимость реализации","Акциз"]
[null,null,null,null,null,null,"Ставка","Сумма",null,"Ставка","Сумма"]
["1","2","3","4","5","6","7","8","9","10","11"]
[1,{"$f":"ФОРМА!C20","v":"Курс английского языка в группе, уровень 3"},{"$f":"ФОРМА!D28","v":"курс"},{"$f":"ФОРМА!H28","v":1},{"$f":"ФОРМА!M28","v":2},{"$f":"E28*D28","v":2},"без НДС",0,{"$f":"F28","v":2},"без акциза",0]
[2,"Доплата за проведение уроков на месте заказчика",{"$f":"ФОРМА!D30","v":"месяц"},{"$f":"ФОРМА!H30","v":1},{"$f":"ФОРМА!M30","v":2},{"$f":"E29*D29","v":2},"без НДС",0,{"$f":"F29","v":2},"без акциза",0]
["Всего по счету в тенге:",null,null,null,null,{"$f":"SUM(F28:F29)","v":4},null,{"$f":"SUM(H28)","v":0},{"$f":"SUM(I28:I29)","v":4},null,0]
[]
["Руководитель организации",null,null,null,null,null,null,"ВЫДАЛ (отв. лицо поставщика)"]
["Аккенжеев Б.Т.",null,null,null,null,null,null,"Администратор"]
["(Ф.И.О., подпись)",null,null,null,"МП",null,null,"(должность)"]
["Главный бухгалтер организации "]
["Не предусмотрен"]
["(Ф.И.О., подпись)",null,null,null,null,null,null,"(Ф.И.О., подпись)"]
["Примечание: Без печати не действительно. Оригинал (первый экземпляр) - покупателю. Копия (второй экземпляр) - поставщику."]

{"sheet":"АКТ","index":5,"n_rows":0,"n_cols":0,"rows_kept":0,"cut":false,"hidden":false,"merged":[]}

{"sheet":"ссылки для выпаюащих списков","index":6,"n_rows":6,"n_cols":3,"rows_kept":6,"cut":false,"hidden":false,"merged":[]}
["месяц","Наличный расчет","курс"]
["урок","Безналичный расчет","урок"]
[null,"Банковское перечисление","месяц"]
[null,"Перевод с карты на карту","чел.курс"]
[null,null,"чел.ур."]
[null,null,"чел.мес"]